bitfinex-derivatives/quotes_ETHF0:USTF0_20241026
["timestamp","ask_amount","ask_price","bid_price","bid_amount"]
[1729954705359,0.4262,2445.8,2445.6,0.40935]
[1729954705857,0.4262,2445.8,2445.3,0.8843]
[1729954705858,0.83553,2445.8,2445.5,0.40937]
[1729954706060,0.4262,2445.8,2445.5,0.40937]
[1729954706252,0.4262,2445.8,2445.3,0.8843]
[1729954706253,0.4262,2445.8,2445.7,0.40934]
[1729954706761,0.4262,2445.8,2445.5,3.2078]
[1729954706957,0.40935,2445.7,2445.3,0.40941]
[1729954707259,0.40935,2445.7,2445.2,3.2078]
[1729954707260,0.4358,2445.7,2445.5,0.40937]
[1729954707463,0.4358,2445.7,2445.5,0.40936]
[1729954708557,0.4358,2445.7,2445.2,3.2078]
[1729954708760,0.4358,2445.7,2445.6,0.40936]
[1729954708971,0.4358,2445.7,2445.2,3.2078]
[1729954709163,0.4358,2445.7,2445.5,0.40936]
[1729954709360,0.84514,2445.7,2445.5,0.40936]
[1729954709561,0.84515,2445.7,2445.5,0.40936]
[1729954709866,0.84515,2445.7,2444.9,1.3047]
[1729954709867,0.40939,2445.4,2444.9,0.8801]
[1729954710070,6.95824097,2445.6,2444.9,0.8801]
[1729954710071,0.452,2445.3,2445.2,0.40943]
[1729954710257,0.452,2445.3,2445.1,0.40943]
[1729954710462,0.452,2445.3,2445.2,0.40943]
[1729954710766,0.452,2445.3,2445.0,3.2078]
[1729954710969,0.86141,2445.3,2445.1,0.40944]
[1729954711169,0.40944,2445.1,2444.9,0.40947]
[1729954711355,3.32144097,2445.3,2444.7,4.0786]
[1729954711356,0.40946,2445.0,2444.8,0.40949]
[1729954711556,4.0648,2445.2,2444.8,0.40949]
[1729954711557,3.27890097,2445.1,2444.8,0.40949]
[1729954711761,3.27890097,2445.1,2444.9,0.40947]
[1729954711762,0.40946,2445.1,2444.9,0.40947]
[1729954712167,0.40947,2445.0,2444.8,0.40949]
[1729954712667,0.40946,2445.0,2444.8,0.40948]
[1729954712869,0.40949,2444.9,2444.7,0.4095]
[1729954713366,0.4402,2444.8,2444.7,0.4095]
[1729954713567,0.4402,2444.8,2444.7,0.40951]
[1729954713769,0.8497,2444.8,2444.6,0.40952]
[1729954714067,0.8497,2444.8,2444.3,0.4506]
[1729954714068,0.4402,2444.8,2444.3,0.4506]
[1729954714267,0.4402,2444.8,2444.4,3.2078]
[1729954714811,3.2078,2445.4,2445.2,0.40942]
[1729954714967,3.2078,2445.4,2444.7,4.23155]
[1729954715171,0.4302,2445.3,2445.1,0.40944]
[1729954715476,3.29964097,2445.3,2445.2,0.40943]
[1729954715772,0.4302,2445.3,2445.2,0.40943]
[1729954716269,3.2078,2445.4,2444.8,0.8986]
[1729954716474,0.8826,2445.5,2445.4,0.40939]
[1729954717474,1.29198,2445.5,2445.3,0.4094]
[1729954717665,0.40941,2445.3,2445.1,0.40944]
[1729954717868,0.40941,2445.4,2445.1,0.40944]
[1729954718073,3.75204097,2445.5,2445.1,0.40944]
[1729954718268,3.75204097,2445.5,2445.0,3.2078]
[1729954718472,2.86944097,2445.3,2445.0,3.2078]
[1729954718775,0.40944,2445.1,2445.0,3.2078]
[1729954718981,4.49904,2445.1,2444.8,0.86008]
[1729954719183,3.61724,2445.1,2444.9,0.40947]
[1729954719377,3.2078,2445.1,2444.5,3.2078]
[1729954719576,3.2078,2445.1,2444.6,0.40953]
[1729954719577,0.40948,2444.9,2444.6,0.40953]
[1729954719977,0.85098,2444.9,2444.6,0.40953]
[1729954720485,0.85098,2444.9,2444.5,3.2078]
[1729954720674,0.85098,2444.9,2444.6,0.40952]
[1729954720871,0.85098,2444.9,2444.6,3.61732]
[1729954721070,0.85098,2444.9,2444.7,0.40951]
[1729954721578,0.40953,2444.6,2444.3,3.61736]
[1729954721774,3.81644097,2444.7,2444.4,0.40954]
[1729954721983,0.40953,2444.6,2444.4,0.40954]
[1729954722371,4.50075,2444.5,2444.3,3.61737]
[1729954722575,0.83265,2444.5,2444.3,3.61737]
[1729954722887,0.4231,2444.5,2444.3,3.2078]
[1729954723181,2.86944097,2444.4,2444.0,3.2078]
[1729954723380,3.31084097,2444.3,2444.0,3.2078]
[1729954723574,0.40963,2444.0,2443.6,0.40968]
[1729954723876,3.27908097,2443.9,2443.6,0.40969]
[1729954724075,3.2078,2443.8,2443.4,3.2078]
[1729954724273,3.2078,2443.8,2443.3,3.2078]
[1729954724480,3.2078,2443.8,2443.7,0.40968]
[1729954724978,3.2078,2443.8,2443.3,3.2078]
[1729954725184,3.2078,2443.8,2443.7,0.40968]
[1729954725391,3.2078,2443.8,2443.3,3.2078]
[1729954725680,3.2078,2443.8,2443.7,0.40968]
[1729954726185,3.2078,2443.8,2443.6,0.40969]
[1729954726379,3.2078,2443.8,2443.3,3.2078]
[1729954726681,3.2078,2444.1,2443.9,0.40964]
[1729954726985,3.2078,2444.1,2443.9,0.40963]
[1729954727174,3.2078,2444.1,2444.0,0.40963]
[1729954727484,0.4414,2444.3,2444.0,0.40961]
[1729954727776,0.4414,2444.3,2444.1,0.4096]
[1729954728375,0.4414,2444.3,2443.9,3.2078]
[1729954728576,0.4096,2444.2,2443.9,3.61743]
[1729954728774,0.4414,2444.3,2443.9,3.2078]
[1729954728979,0.4414,2444.3,2444.1,0.4096]
[1729954729190,0.4414,2444.3,2444.2,0.40959]
[1729954729484,0.4414,2444.3,2444.1,0.4096]
[1729954730186,0.4414,2444.3,2443.9,3.2078]
[1729954730388,0.85098,2444.3,2444.0,0.40962]
[1729954730583,0.4414,2444.3,2443.9,3.2078]
[1729954730782,0.4414,2444.3,2444.2,0.40959]
[1729954731080,0.4414,2444.3,2444.1,0.4096]
[1729954732183,0.4414,2444.3,2444.2,0.40959]
[1729954732384,2.86944097,2444.6,2444.4,0.40954]
[1729954733282,2.86944097,2444.6,2444.3,0.40958]
[1729954733481,2.86944097,2444.6,2444.2,3.2078]
[1729954733482,2.86944097,2444.6,2444.4,0.40954]
[1729954733682,2.86944097,2444.6,2444.3,0.4214]
[1729954733881,2.86944097,2444.6,2444.5,0.40954]
[1729954734077,0.4342,2444.8,2444.6,0.40951]
[1729954734282,0.4342,2444.8,2444.5,0.40954]
[1729954734283,0.8437,2444.8,2444.5,0.40954]
[1729954734486,0.4342,2444.8,2444.3,0.4214]
[1729954734684,0.4342,2444.8,2444.7,0.40951]
[1729954734887,0.4342,2444.8,2444.3,1.2759]
[1729954735279,0.4342,2444.8,2444.7,0.40951]
[1729954735483,3.655,2445.0,2444.4,0.40956]
[1729954735683,3.2078,2445.0,2444.9,0.40948]
[1729954735992,0.8608,2445.5,2444.5,3.2078]
[1729954735993,3.73024097,2445.5,2444.6,3.89326097]
[1729954736285,3.73024097,2445.5,2444.9,0.40947]
[1729954736286,3.27887097,2445.2,2444.9,0.40947]
[1729954736586,2.86944097,2445.2,2445.0,0.40945]
[1729954736891,3.27887097,2445.2,2444.9,0.40946]
[1729954737087,2.86944097,2445.2,2445.0,0.40945]
[1729954737290,2.86944097,2445.2,2444.9,0.40946]
[1729954737291,3.27887097,2445.2,2444.9,0.40946]
[1729954737681,2.86944097,2445.2,2445.0,0.40945]
[1729954738091,2.86944097,2445.2,2444.8,3.2078]
[1729954738288,6.07724097,2445.1,2444.5,3.2078]
[1729954738491,0.40953,2444.6,2444.5,3.2078]
[1729954738691,0.40953,2444.6,2443.9,1.02411]
[1729954738692,6.07724097,2444.8,2444.6,0.40952]
[1729954738992,6.07724097,2444.8,2444.1,4.2318]
[1729954738993,6.07724097,2444.8,2444.7,0.40951]
[1729954739488,6.07724097,2444.8,2444.3,0.8477]
[1729954739690,6.07724097,2444.8,2444.6,0.40951]
[1729954739891,2.86944097,2444.8,2444.6,0.40951]
[1729954740386,2.86944097,2444.8,2444.4,0.4154]
[1729954740597,3.27893097,2444.8,2444.5,0.40953]
[1729954740890,0.4373,2444.7,2444.5,0.40953]
[1729954741488,0.84681,2444.7,2444.5,0.40953]
[1729954741701,0.4373,2444.7,2444.5,0.40953]
[1729954741987,4.2248,2445.1,2444.4,0.4154]
[1729954741988,0.40948,2444.9,2444.4,0.4154]
[1729954742187,4.2248,2445.1,2444.4,0.4154]
[1729954742188,0.40949,2444.8,2444.5,0.40953]
[1729954742384,0.40951,2444.7,2444.5,0.40953]
[1729954742584,0.40951,2444.7,2444.4,0.4154]
[1729954742781,0.40951,2444.7,2444.3,0.8477]
[1729954742988,0.4254,2444.9,2444.4,0.40956]
[1729954743196,0.4254,2444.9,2443.8,3.625]
[1729954743197,3.2078,2444.5,2443.8,3.625]
[1729954743389,2.63383509,2445.7,2444.7,3.2078]
[1729954743584,2.63383509,2445.7,2444.5,1.02384]
[1729954743585,0.4165,2446.6,2446.1,0.40926]
[1729954743789,0.4165,2446.6,2446.2,3.2078]
[1729954744196,0.40922,2446.5,2446.2,3.2078]
[1729954744385,0.40923,2446.4,2446.2,3.2078]
[1729954744586,0.40924,2446.3,2446.2,3.2078]
[1729954744982,4.49724,2446.3,2446.2,3.2078]
[1729954745187,0.40926,2446.2,2445.8,0.84962]
[1729954745388,0.85866,2446.2,2445.8,0.84962]
[1729954745793,0.4494,2446.2,2445.8,0.4403]
[1729954746094,0.85866,2446.2,2445.8,0.84961]
[1729954746295,0.85866,2446.2,2445.9,0.40931]
[1729954746489,0.4494,2446.2,2445.9,0.40931]
[1729954746797,0.4494,2446.2,2445.9,0.4093]
[1729954747494,0.4494,2446.2,2445.8,0.84962]
[1729954747495,0.85866,2446.2,2445.8,0.84962]
[1729954747689,0.4494,2446.2,2445.8,0.84962]
[1729954747890,0.85867,2446.2,2445.8,0.40932]
[1729954748198,0.85867,2446.2,2445.7,3.2078]
[1729954748402,0.85867,2446.2,2445.9,0.4093]
[1729954748894,4.5374,2446.2,2445.9,0.40931]
[1729954749098,0.85866,2446.2,2445.9,0.4093]
[1729954749394,0.4494,2446.2,2446.0,0.40929]
[1729954749695,0.4494,2446.2,2446.1,0.40927]
[1729954750291,1.017,2446.4,2446.1,0.40927]
[1729954750496,0.40925,2446.3,2446.0,0.40928]
[1729954750695,0.40924,2446.3,2445.9,0.4093]
[1729954750893,1.017,2446.4,2445.8,3.53815448]
[1729954751090,1.42623,2446.4,2446.1,0.40926]
[1729954751291,1.017,2446.4,2445.8,3.53815448]
[1729954751492,0.40926,2446.2,2445.9,0.4093]
[1729954751692,0.40925,2446.3,2445.8,3.53815448]
[1729954751897,1.016,2446.4,2446.0,0.40928]
[1729954752098,0.40925,2446.3,2446.0,0.40928]
[1729954752601,0.40925,2446.3,2446.0,0.40929]
[1729954752992,0.40924,2446.3,2446.0,0.40929]
[1729954753396,4.088,2446.2,2445.7,3.2078]
[1729954753601,1.016,2446.4,2445.7,3.2078]
[1729954753790,0.40925,2446.3,2445.7,3.2078]
[1729954753988,1.016,2446.4,2445.9,0.40929]
[1729954754195,0.40927,2446.2,2445.9,0.40929]
[1729954754408,1.016,2446.4,2445.8,3.53815448]
[1729954754701,1.42523,2446.4,2446.0,3.53815448]
[1729954754898,0.419,2446.5,2446.0,6.74595448]
[1729954755097,0.419,2446.5,2446.3,0.40923]
[1729954756001,0.82821,2446.5,2446.2,0.40925]
[1729954756594,3.2078,2446.8,2446.0,6.74595448]
[1729954756791,0.40922,2446.5,2446.2,0.40926]
[1729954757194,1.9277,2446.7,2446.0,3.2078]
[1729954757394,0.40926,2446.2,2446.0,3.2078]
[1729954758003,2.95067,2446.7,2446.0,3.2078]
[1729954758004,0.40927,2446.1,2446.0,3.2078]
[1729954759214,0.40927,2446.1,2445.9,0.435]
[1729954759215,0.40929,2446.1,2445.9,0.435]
[1729954759608,0.4135,2446.4,2445.9,0.435]
[1729954759801,0.40929,2446.0,2445.9,0.435]
[1729954759996,0.40929,2446.0,2445.7,3.61713]
[1729954760398,0.4093,2446.0,2445.7,3.2078]
[1729954760598,0.4218,2446.2,2445.8,0.40932]
[1729954760801,0.4093,2446.0,2445.6,0.4443]
[1729954761009,0.4093,2446.0,2445.7,0.40933]
[1729954761303,0.4093,2446.0,2445.6,0.4443]
[1729954761304,0.40931,2446.0,2445.6,0.4443]
[1729954761511,3.53815448,2446.0,2445.4,3.2078]
[1729954761700,4.56162448,2445.5,2444.8,3.2078]
[1729954761897,4.56162448,2445.5,2444.4,3.61734]
[1729954761898,0.40952,2444.7,2444.4,3.61734]
[1729954762103,1.0236,2445.2,2444.5,0.40954]
[1729954762104,3.53815448,2445.1,2444.5,0.40954]
[1729954762297,0.40953,2444.6,2444.4,3.2078]
[1729954762511,4.23145,2445.0,2444.4,3.61735]
[1729954762809,0.40952,2444.7,2444.4,3.61735]
[1729954763206,0.40954,2444.5,2444.4,3.2078]
[1729954763410,0.4095,2444.6,2444.4,3.2078]
[1729954763726,0.40951,2444.5,2444.4,3.2078]
[1729954764020,1.046,2444.9,2444.4,3.2078]
[1729954764200,4.23145,2445.0,2444.4,3.2078]
[1729954764509,1.45545,2444.9,2444.5,0.40951]
[1729954764704,0.40947,2444.7,2444.4,3.2078]
[1729954764907,0.40946,2444.8,2444.4,3.61732]
[1729954765117,1.046,2444.9,2444.4,3.2078]
[1729954765300,0.40951,2444.5,2444.4,3.2078]
[1729954765811,0.4095,2444.6,2444.4,3.2078]
[1729954766114,3.2078,2445.0,2444.4,3.2078]
[1729954766306,0.40948,2444.7,2444.4,3.2078]
[1729954766615,1.046,2444.9,2444.4,3.2078]
[1729954766616,0.40949,2444.6,2444.4,3.2078]
[1729954766806,1.046,2444.9,2444.4,3.2078]
[1729954767008,0.40948,2444.7,2444.4,3.2078]
[1729954767324,4.2538,2445.0,2444.5,0.4095]
[1729954767508,1.02333,2445.6,2444.6,0.40948]
[1729954767509,0.40945,2444.9,2444.6,0.40948]
[1729954768315,1.046,2445.2,2444.5,0.4111]
[1729954768612,0.40948,2444.7,2444.5,0.4111]
[1729954769016,0.40948,2444.7,2444.5,0.8206]
[1729954769513,0.40949,2444.6,2444.5,0.4111]
[1729954769811,0.40951,2444.5,2444.4,3.2078]
[1729954770012,0.4095,2444.6,2444.4,3.61732]
[1729954771205,4.56170448,2445.1,2444.4,3.2078]
[1729954771416,0.40948,2444.7,2444.5,0.4095]
[1729954771616,2.06951,2445.2,2444.4,3.61732]
[1729954771617,0.4095,2444.6,2444.4,3.61732]
[1729954771809,0.40949,2444.6,2444.4,3.61731]
[1729954772326,4.56167448,2445.1,2444.5,0.4095]
[1729954772617,0.40947,2444.7,2444.5,0.4095]
[1729954773011,0.40948,2444.7,2444.5,0.4095]
[1729954773211,3.53815448,2445.1,2444.4,3.2078]
[1729954773420,0.4095,2444.6,2444.4,3.61731]
[1729954773807,0.40949,2444.7,2444.5,0.4095]
[1729954774224,0.40948,2444.7,2444.5,0.4095]
[1729954775213,0.40948,2444.7,2444.4,3.2078]
[1729954775414,3.2078,2445.1,2444.4,3.2078]
[1729954775614,0.40948,2444.7,2444.5,0.4095]
[1729954775819,0.40947,2444.8,2444.6,0.40948]
[1729954776118,0.40947,2444.7,2444.5,0.83189]
[1729954776418,0.40947,2444.7,2444.5,0.4224]
[1729954776621,1.8953,2445.4,2444.5,0.4224]
[1729954776622,0.40938,2445.3,2444.8,0.40946]
[1729954776922,0.86207,2445.4,2445.2,0.40938]
[1729954777114,0.40935,2445.5,2445.2,0.40939]
[1729954777422,0.40934,2445.6,2445.4,3.61715]
[1729954777620,0.40934,2445.5,2445.4,3.61715]
[1729954777823,0.40934,2445.5,2445.4,3.2078]
[1729954781919,1.02333,2445.6,2445.2,3.2078]
[1729954782117,0.40938,2445.3,2445.2,3.2078]
[1729954786821,0.4429,2445.7,2445.2,3.2078]
[1729954787124,0.40935,2445.5,2445.2,3.2078]
[1729954787325,0.4439,2445.9,2445.6,0.40932]
[1729954787622,0.40931,2445.7,2445.6,3.2078]
[1729954788525,0.40931,2445.7,2445.6,3.61712]
[1729954788727,0.40931,2445.7,2445.6,3.2078]
[1729954789820,0.40926,2446.0,2445.9,0.40926]
[1729954790017,2.09355749,2446.1,2445.9,3.61706]
[1729954790315,2.50280749,2446.1,2446.0,0.40926]
[1729954790921,2.50280749,2446.1,2445.9,3.61706]
[1729954791123,2.50280749,2446.1,2446.0,0.40926]
[1729954791812,2.09355749,2446.1,2446.0,0.40926]
[1729954792029,2.50279749,2446.1,2446.0,0.40926]
[1729954792816,2.09355749,2446.1,2445.9,6.08424128]
[1729954793013,0.40926,2446.0,2445.9,3.2078]
[1729954793220,0.40926,2446.0,2445.9,3.61707]
[1729954794018,0.71503509,2447.0,2446.3,7.3088]
[1729954794220,3.68736913,2447.4,2447.2,0.40905]
[1729954794427,4.73869384,2447.7,2447.3,4.0864]
[1729954794631,4.73869384,2447.7,2447.5,6.49324128]
[1729954796324,4.73869384,2447.7,2447.5,3.6168]
[1729954798232,0.40895,2447.9,2447.5,3.6168]
[1729954798433,0.40894,2447.9,2447.8,3.2078]
[1729954799035,4.49454,2447.9,2447.8,3.2078]
[1729954801031,4.49454,2447.9,2447.8,2.5259]
[1729954801831,4.49454,2447.9,2447.1,3.96556887]
[1729954801832,0.40898,2447.7,2447.4,3.61681]
[1729954802036,0.40896,2447.8,2447.5,0.40899]
[1729954802224,0.40893,2448.0,2447.7,3.61676]
[1729954802425,0.40891,2448.1,2447.9,3.53566887]
[1729954802644,4.22986,2448.6,2448.0,3.2078]
[1729954802645,3.2078,2448.6,2448.0,3.2078]
[1729954802934,0.4536,2448.9,2448.1,3.53566887]
[1729954802935,0.40888,2448.3,2448.1,3.53566887]
[1729954803135,0.40888,2448.3,2448.0,3.61671]
[1729954803332,0.40889,2448.2,2448.0,3.2078]
[1729954803727,4.22982,2448.7,2448.0,3.2078]
[1729954803923,0.40886,2448.4,2448.1,3.94456887]
[1729954804127,0.40884,2448.5,2448.2,0.40888]
[1729954804539,0.4355,2448.6,2448.3,3.2078]
[1729954804738,0.4355,2448.6,2448.4,0.40885]
[1729954805031,3.2078,2448.7,2448.3,6.74346887]
[1729954805237,3.2078,2448.7,2448.6,0.40882]
[1729954805424,3.61656,2449.0,2448.7,0.4088]
[1729954805621,0.4368,2449.1,2448.6,6.74346887]
[1729954805827,0.8608,2449.3,2448.9,3.2078]
[1729954806533,0.8608,2449.3,2448.6,3.2078]
[1729954806534,0.4088,2448.8,2448.6,3.2078]
[1729954806835,0.8608,2449.3,2448.6,3.2078]
[1729954806836,0.40877,2448.9,2448.7,0.4088]
[1729954807038,0.4088,2448.8,2448.6,6.74346887]
[1729954807244,0.4368,2449.2,2448.6,7.15227887]
[1729954807433,0.40876,2449.0,2448.8,3.53566887]
[1729954807735,1.02168,2449.5,2448.8,3.53566887]
[1729954807736,0.40867,2449.6,2449.3,0.40869]
[1729954807935,0.40867,2449.6,2448.8,6.74346887]
[1729954807936,0.4422,2449.7,2449.5,3.94432887]
[1729954808135,0.4422,2449.7,2449.5,3.53566887]
[1729954808433,0.40862,2449.8,2449.5,3.53566887]
[1729954808635,0.40862,2449.8,2449.7,3.2078]
[1729954809136,0.40858,2450.1,2449.8,0.40861]
[1729954809325,3.2078,2450.2,2449.7,7.2902]
[1729954809326,3.61636,2450.2,2450.0,3.53566887]
[1729954809525,3.2078,2450.2,2450.0,3.53566887]
[1729954809724,3.2078,2450.2,2449.4,3.2078]
[1729954809725,4.0816,2450.1,2449.4,3.2078]
[1729954809929,1.02147,2450.0,2449.3,3.53566887]
[1729954810130,0.40867,2449.5,2449.4,3.2078]
[1729954811627,4.49107,2449.5,2449.4,3.2078]
[1729954812731,0.40871,2449.3,2449.1,6.74346887]
[1729954812934,4.3598,2449.9,2449.1,6.74346887]
[1729954813127,1.02147,2450.0,2449.4,6.74346887]
[1729954813531,2.4398,2450.1,2449.4,6.74346887]
[1729954813731,2.4398,2450.1,2449.4,7.15214887]
[1729954813932,0.40865,2449.6,2449.4,7.15214887]
[1729954814241,2.4398,2450.1,2449.4,6.74346887]
[1729954814536,1.02147,2450.0,2449.4,6.74346887]
[1729954814743,0.40866,2449.6,2449.4,6.74346887]
[1729954815041,0.40867,2449.5,2449.4,6.74346887]
[1729954815245,1.02147,2450.0,2449.4,6.74346887]
[1729954815246,0.40866,2449.6,2449.4,7.15215887]
[1729954815434,0.40864,2449.8,2449.5,0.40866]
[1729954815740,0.40862,2449.9,2449.6,0.40865]
[1729954815936,2.4398,2450.1,2449.6,0.40865]
[1729954815937,0.40862,2449.8,2449.6,0.40865]
[1729954816342,0.40862,2449.8,2449.5,0.40866]
[1729954816529,0.40862,2449.8,2449.7,3.2078]
[1729954816930,0.40866,2449.6,2449.4,6.74346887]
[1729954817135,0.40867,2449.5,2449.4,3.2078]
[1729954817338,1.02147,2450.0,2449.4,3.61648]
[1729954817536,0.40867,2449.5,2449.4,3.2078]
[1729954818145,1.02147,2450.0,2449.4,3.61649]
[1729954818146,0.4086,2449.9,2449.4,3.61649]
[1729954818444,0.40867,2449.5,2449.4,3.2078]
[1729954819046,0.40867,2449.5,2449.1,3.2078]
[1729954819047,0.40872,2449.2,2449.1,3.2078]
[1729954820436,0.40877,2449.0,2448.8,0.40878]
[1729954820637,0.40877,2449.0,2448.7,7.17516887]
[1729954820638,0.40879,2448.8,2448.7,6.74346887]
[1729954820843,0.40879,2448.8,2448.7,3.2078]
[1729954821048,0.40882,2448.6,2448.5,3.53566887]
[1729954821233,0.40882,2448.6,2448.5,3.2078]
[1729954821544,0.8973,2448.9,2448.5,3.61664]
[1729954821743,0.40881,2448.7,2448.5,3.61664]
[1729954821944,0.40881,2448.7,2448.5,3.61662]
[1729954822149,1.45373,2449.4,2448.5,6.74346887]
[1729954822150,0.432,2449.4,2448.5,6.74346887]
[1729954822446,0.432,2449.4,2448.8,6.74346887]
[1729954822649,0.84069,2449.4,2449.2,0.40871]
[1729954822843,0.432,2449.4,2449.1,3.53566887]
[1729954823146,0.84069,2449.4,2449.2,0.40871]
[1729954823541,0.84069,2449.4,2449.1,6.74346887]
[1729954823542,0.4114,2449.7,2449.1,6.74346887]
[1729954823746,0.4114,2449.7,2449.4,3.2078]
[1729954824147,0.40867,2449.5,2449.4,3.2078]
[1729954824343,0.40867,2449.5,2449.4,3.61649]
[1729954824551,0.40867,2449.5,2449.4,3.2078]
[1729954825342,0.40872,2449.2,2449.1,3.2078]
[1729954825748,0.40876,2449.0,2448.8,3.61658]
[1729954825949,0.40875,2449.1,2448.9,0.40876]
[1729954826341,0.40875,2449.1,2448.8,3.2078]
[1729954826650,0.40875,2449.1,2448.9,0.40876]
[1729954826840,0.40875,2449.1,2449.0,0.40875]
[1729954827046,0.40876,2449.0,2448.8,3.61658]
[1729954827247,1.0217,2449.5,2448.8,3.61658]
[1729954827248,0.40877,2448.9,2448.8,3.61658]
[1729954827646,1.0217,2449.5,2448.8,3.2078]
[1729954827647,0.40874,2449.1,2448.8,3.2078]
[1729954827848,0.40874,2449.1,2448.9,0.40876]
[1729954828145,3.53566887,2449.6,2448.8,3.2078]
[1729954828358,0.40877,2448.9,2448.8,3.2078]
[1729954829339,1.3143,2449.1,2448.4,3.98946887]
[1729954829340,0.40882,2448.6,2448.5,3.61663]
[1729954829545,0.4088,2448.7,2448.6,0.40882]
[1729954829845,1.3143,2449.1,2448.5,3.2078]
[1729954830039,1.3143,2449.1,2448.5,3.61663]
[1729954830239,0.40875,2449.0,2448.5,3.61663]
[1729954830444,0.40881,2448.7,2448.5,3.61663]
[1729954830950,2.33618,2449.1,2448.5,3.61663]
[1729954830951,0.40882,2448.6,2448.5,3.61663]
[1729954831152,0.40882,2448.6,2448.5,3.2078]
[1729954831354,0.40882,2448.6,2448.5,7.70064]
[1729954831853,0.40882,2448.6,2448.5,3.2078]
[1729954833654,6.64596,2449.1,2448.5,7.2918]
[1729954833855,0.40877,2449.0,2448.8,0.40878]
[1729954834155,1.3143,2449.1,2448.8,3.61658]
[1729954834343,0.40875,2449.0,2448.9,0.40877]
[1729954834548,0.4381,2449.1,2448.8,3.2078]
[1729954834748,0.40874,2449.1,2449.0,0.40875]
[1729954834943,0.40874,2449.1,2449.0,4.0832]
[1729954835557,0.40872,2449.3,2449.1,0.40873]
[1729954835751,0.40872,2449.2,2449.1,3.61653]
[1729954836755,0.40872,2449.2,2449.1,3.2078]
[1729954837344,0.40872,2449.2,2449.1,3.61654]
[1729954837557,0.4316,2449.4,2448.7,3.61659]
[1729954837857,0.40884,2448.5,2448.4,7.15230887]
[1729954838158,1.02183,2449.2,2448.4,7.15230887]
[1729954838159,0.40883,2448.6,2448.4,7.15230887]
[1729954838454,0.40884,2448.5,2448.4,7.15230887]
[1729954838652,0.40884,2448.5,2448.4,3.61665]
[1729954838846,0.40884,2448.5,2448.4,7.70065]
[1729954839243,1.3298,2448.9,2448.4,7.70065]
[1729954839452,0.40884,2448.6,2448.4,3.61665]
[1729954839651,0.8298,2448.9,2448.4,6.74346887]
[1729954839957,4.3098,2449.5,2448.7,3.2078]
[1729954840255,0.40878,2448.9,2448.8,0.40878]
[1729954840458,1.02174,2449.4,2448.7,3.2078]
[1729954840754,0.40876,2449.0,2448.9,0.40877]
[1729954840947,2.12369,2449.5,2449.0,0.40875]
[1729954841148,0.52169,2449.5,2449.0,3.61655]
[1729954841348,0.40874,2449.1,2449.0,3.61655]
[1729954841550,0.43043,2449.5,2449.0,3.61655]
[1729954841858,5.65926887,2449.7,2448.8,0.4233]
[1729954841859,1.02181,2449.3,2448.8,0.4233]
[1729954842057,0.40877,2448.9,2448.8,0.4233]
[1729954842263,0.40879,2448.8,2448.7,3.2078]
[1729954844452,0.40879,2448.8,2448.7,3.6166]
[1729954845162,0.4378,2449.0,2448.7,3.6166]
[1729954845363,0.40879,2448.8,2448.7,3.2078]
[1729954845562,0.40879,2448.8,2448.7,3.6166]
[1729954846664,0.84656,2449.0,2448.9,0.40877]
[1729954846865,0.40878,2448.9,2448.8,0.40878]
[1729954848265,0.4378,2449.0,2448.7,3.2078]
[1729954848559,0.40877,2448.9,2448.8,0.40878]
[1729954848965,0.4378,2449.0,2448.7,3.2078]
[1729954849174,0.40878,2448.9,2448.8,0.40878]
[1729954849574,0.4378,2449.0,2448.9,0.40877]
[1729954849766,0.84253,2449.2,2449.1,0.40874]
[1729954849767,0.4338,2449.2,2449.1,0.40874]
[1729954849966,0.4338,2449.2,2449.1,3.2078]
[1729954849967,0.40872,2449.2,2449.1,3.2078]
[1729954850875,0.40872,2449.2,2449.1,3.61654]
[1729954851075,0.40872,2449.2,2449.1,3.2078]
[1729954851270,1.87544,2449.4,2448.8,3.6406]
[1729954851467,1.87544,2449.4,2449.0,0.40875]
[1729954851468,0.40875,2449.1,2449.0,0.40875]
[1729954854680,0.40874,2449.2,2448.8,3.6406]
[1729954854878,0.40874,2449.2,2449.1,0.40874]
[1729954855270,0.40874,2449.2,2449.1,3.61654]
[1729954856580,0.40874,2449.2,2449.1,3.2078]
[1729954856877,0.40874,2449.2,2449.1,3.61654]
[1729954857784,0.40874,2449.2,2449.1,3.2078]
[1729954858079,0.40874,2449.2,2449.1,3.61654]
[1729954859378,0.40874,2449.2,2449.1,3.2078]
[1729954859775,0.40874,2449.2,2449.1,3.61654]
[1729954860384,0.40874,2449.2,2449.1,3.2078]
[1729954860581,0.40874,2449.2,2449.1,3.61654]
[1729954860882,0.40874,2449.2,2449.1,3.2078]
[1729954861178,0.40874,2449.2,2448.3,0.40887]
[1729954861179,0.40887,2448.4,2448.3,0.40887]
[1729954861394,1.02189,2449.0,2448.3,0.40886]
[1729954861395,1.02199,2448.8,2448.3,0.40886]
[1729954861582,5.50497401,2448.9,2448.3,2.87112716]
[1729954861583,0.4305,2448.7,2448.3,2.87112716]
[1729954861777,0.4305,2448.7,2448.6,0.40882]
[1729954862285,2.63384685,2449.2,2448.6,4.084]
[1729954862476,0.40875,2449.1,2449.0,3.2078]
[1729954862677,0.8708,2449.2,2448.9,0.40876]
[1729954862678,0.40875,2449.0,2448.9,0.40876]
[1729954862986,0.8708,2449.2,2448.7,0.4153]
[1729954862987,0.40879,2448.8,2448.7,0.4153]
[1729954863280,0.40879,2448.8,2448.2,1.60365674]
[1729954863281,5.84164685,2448.8,2448.2,3.2078]